[Event "*** SCC Grand Prix: Titled Tuesday Blitz"]
[Site "Chess.com"]
[Date "2020.10.13"]
[Round "9"]
[White "ehrenfeld"]
[Black "queen_iryna"]
[Result "1-0"]
[WhiteElo "2481"]
[BlackElo "2303"]
[TimeControl "180+1"]
[EndTime "11:43:32 PDT"]
[Termination "ehrenfeld won by resignation"]

1. e4 {[%clk 0:03:00.9]} 1... d6 {[%clk 0:02:59.9]} 2. d4 {[%clk 0:02:57.9]}
2... Nf6 {[%clk 0:03:00.1]} 3. Nc3 {[%clk 0:02:58.1]} 3... e5 {[%clk 0:03:00.3]}
4. Nge2 {[%clk 0:02:57.9]} 4... Nc6 {[%clk 0:02:59.5]} 5. d5 {[%clk 0:02:55.6]}
5... Ne7 {[%clk 0:02:59.2]} 6. f3 {[%clk 0:02:48.3]} 6... Ng6 {[%clk 0:02:57.9]}
7. Be3 {[%clk 0:02:47.9]} 7... Be7 {[%clk 0:02:57.9]} 8. Qd2 {[%clk 0:02:47.9]}
8... Nh5 {[%clk 0:02:54.2]} 9. g3 {[%clk 0:02:43.4]} 9... h6 {[%clk 0:02:53]}
10. h4 {[%clk 0:02:37.1]} 10... c6 {[%clk 0:02:43.1]} 11. O-O-O {[%clk
0:02:35.9]} 11... Bd7 {[%clk 0:02:27.5]} 12. Bh3 {[%clk 0:02:34.5]} 12... a5
{[%clk 0:02:01.9]} 13. Bxd7+ {[%clk 0:02:30.5]} 13... Qxd7 {[%clk 0:02:02.8]}
14. g4 {[%clk 0:02:15.4]} 14... Nhf4 {[%clk 0:02:01.4]} 15. h5 {[%clk
0:02:08.4]} 15... Nxe2+ {[%clk 0:01:56.1]} 16. Nxe2 {[%clk 0:02:05]} 16... Nf8
{[%clk 0:01:53.7]} 17. Ng3 {[%clk 0:02:04.8]} 17... c5 {[%clk 0:01:51]} 18. Nf5
{[%clk 0:02:01.7]} 18... Bf6 {[%clk 0:01:50.9]} 19. f4 {[%clk 0:01:53.5]} 19...
exf4 {[%clk 0:01:20.4]} 20. Bxf4 {[%clk 0:01:53]} 20... Be5 {[%clk 0:01:20.3]}
21. Bxe5 {[%clk 0:01:51.2]} 21... dxe5 {[%clk 0:01:21.2]} 22. Nxg7+ {[%clk
0:01:50.1]} 22... Kd8 {[%clk 0:01:21.4]} 23. Nf5 {[%clk 0:01:48.5]} 23... Nh7
{[%clk 0:01:19.3]} 24. Qxh6 {[%clk 0:01:45.8]} 24... Kc7 {[%clk 0:01:16.1]} 25.
Qe3 {[%clk 0:01:44]} 25... b6 {[%clk 0:01:11.4]} 26. g5 {[%clk 0:01:43.7]} 26...
Rag8 {[%clk 0:01:07.9]} 27. d6+ {[%clk 0:01:37.6]} 27... Kb7 {[%clk 0:01:07.1]}
28. Ne7 {[%clk 0:01:18.3]} 28... Rxg5 {[%clk 0:01:02.3]} 29. Qd3 {[%clk
0:01:18.2]} 29... Nf6 {[%clk 0:00:55.1]} 30. Rhf1 {[%clk 0:01:17.4]} 30... Ng8
{[%clk 0:00:42.5]} 31. Rxf7 {[%clk 0:01:10.2]} 31... Rgxh5 {[%clk 0:00:23]} 32.
Qd5+ {[%clk 0:01:08.4]} 32... Ka6 {[%clk 0:00:19.2]} 33. Nxg8 {[%clk 0:00:54.3]}
33... Rxg8 {[%clk 0:00:18.4]} 34. Rxd7 {[%clk 0:00:53.5]} 1-0

[Event "*** SCC Grand Prix: Titled Tuesday Blitz"]
[Site "Chess.com"]
[Date "2020.10.13"]
[Round "9"]
[White "Jospem"]
[Black "Omk124"]
[Result "0-1"]
[WhiteElo "2906"]
[BlackElo "2517"]
[TimeControl "180+1"]
[EndTime "11:43:33 PDT"]
[Termination "Omk124 won by resignation"]

1. e4 {[%clk 0:03:00.9]} 1... g6 {[%clk 0:02:39.1]} 2. d4 {[%clk 0:02:59.5]}
2... Bg7 {[%clk 0:02:37.6]} 3. Nf3 {[%clk 0:03:00]} 3... c6 {[%clk 0:02:36.4]}
4. h3 {[%clk 0:02:58.9]} 4... d6 {[%clk 0:02:35.7]} 5. Bd3 {[%clk 0:02:57.8]}
5... Nf6 {[%clk 0:02:36.1]} 6. c3 {[%clk 0:02:58.1]} 6... O-O {[%clk 0:02:36.4]}
7. O-O {[%clk 0:02:58.4]} 7... Nbd7 {[%clk 0:02:36.5]} 8. e5 {[%clk 0:02:55.7]}
8... dxe5 {[%clk 0:02:36.4]} 9. dxe5 {[%clk 0:02:56.6]} 9... Nd5 {[%clk
0:02:36.7]} 10. Qe2 {[%clk 0:02:57.2]} 10... Qc7 {[%clk 0:02:33.7]} 11. Re1
{[%clk 0:02:57]} 11... Nc5 {[%clk 0:02:32.6]} 12. Bc2 {[%clk 0:02:49.2]} 12...
Bf5 {[%clk 0:02:31.1]} 13. Na3 {[%clk 0:02:44.5]} 13... Bxc2 {[%clk 0:02:28]}
14. Nxc2 {[%clk 0:02:44.4]} 14... Ne6 {[%clk 0:02:28.7]} 15. c4 {[%clk
0:02:40.9]} 15... Ndf4 {[%clk 0:02:27.7]} 16. Qe4 {[%clk 0:02:40.7]} 16... f5
{[%clk 0:01:48.9]} 17. exf6 {[%clk 0:02:26.3]} 17... Rxf6 {[%clk 0:01:49.5]} 18.
Be3 {[%clk 0:02:18.4]} 18... Raf8 {[%clk 0:01:47.8]} 19. Bd4 {[%clk 0:01:16.1]}
19... Nxd4 {[%clk 0:01:46.8]} 20. Ncxd4 {[%clk 0:01:15.7]} 20... e5 {[%clk
0:01:21.2]} 21. Nxe5 {[%clk 0:01:02.8]} 21... Re8 {[%clk 0:01:11.3]} 22. Ndf3
{[%clk 0:00:58.7]} 22... Rf5 {[%clk 0:01:05.6]} 23. g3 {[%clk 0:00:38.9]} 23...
Nxh3+ {[%clk 0:01:04.9]} 24. Kg2 {[%clk 0:00:39.1]} 24... Nxf2 {[%clk
0:01:01.8]} 25. Kxf2 {[%clk 0:00:34.6]} 25... Rexe5 {[%clk 0:00:58.1]} 26. Qc2
{[%clk 0:00:28.3]} 26... Qf7 {[%clk 0:00:47.5]} 27. Rxe5 {[%clk 0:00:20.3]}
27... Rxf3+ {[%clk 0:00:46.5]} 28. Kg2 {[%clk 0:00:20.9]} 28... Bxe5 {[%clk
0:00:47.1]} 29. Rd1 {[%clk 0:00:21]} 29... Rxg3+ {[%clk 0:00:47.1]} 30. Kh1
{[%clk 0:00:21.4]} 30... Qf3+ {[%clk 0:00:47.1]} 0-1

[Event "*** SCC Grand Prix: Titled Tuesday Blitz"]
[Site "Chess.com"]
[Date "2020.10.13"]
[Round "9"]
[White "TrimitziosP7"]
[Black "m_ezat"]
[Result "1-0"]
[WhiteElo "2818"]
[BlackElo "2528"]
[TimeControl "180+1"]
[EndTime "11:43:33 PDT"]
[Termination "TrimitziosP7 won by resignation"]

1. Nf3 {[%clk 0:03:00.9]} 1... Nf6 {[%clk 0:03:00.1]} 2. b3 {[%clk 0:03:00.3]}
2... g6 {[%clk 0:03:00.6]} 3. Bb2 {[%clk 0:03:00.7]} 3... Bg7 {[%clk 0:03:01.3]}
4. g3 {[%clk 0:03:00.5]} 4... O-O {[%clk 0:03:01.8]} 5. Bg2 {[%clk 0:03:00.9]}
5... d6 {[%clk 0:03:02.5]} 6. d4 {[%clk 0:03:00]} 6... e5 {[%clk 0:03:01.8]} 7.
dxe5 {[%clk 0:02:59.4]} 7... Ng4 {[%clk 0:03:01.3]} 8. O-O {[%clk 0:02:59.6]}
8... Nc6 {[%clk 0:03:00.1]} 9. c4 {[%clk 0:02:59.8]} 9... a5 {[%clk 0:02:57.5]}
10. Nc3 {[%clk 0:02:58.6]} 10... Ngxe5 {[%clk 0:02:57.3]} 11. Qd2 {[%clk
0:02:58.7]} 11... Re8 {[%clk 0:02:44]} 12. Rac1 {[%clk 0:02:56.3]} 12... Bg4
{[%clk 0:02:42.1]} 13. Nd5 {[%clk 0:02:51.9]} 13... a4 {[%clk 0:02:40]} 14. h3
{[%clk 0:02:49]} 14... Bxf3 {[%clk 0:02:38.4]} 15. exf3 {[%clk 0:02:48.6]} 15...
axb3 {[%clk 0:02:39]} 16. axb3 {[%clk 0:02:49.5]} 16... Ra2 {[%clk 0:02:38.9]}
17. Rc2 {[%clk 0:02:48.5]} 17... Rxb2 {[%clk 0:02:05.2]} 18. Rxb2 {[%clk
0:02:47.4]} 18... Nd4 {[%clk 0:02:05.7]} 19. Kh1 {[%clk 0:02:24.7]} 19... Nexf3
{[%clk 0:02:04.7]} 20. Qd1 {[%clk 0:02:24.1]} 20... c6 {[%clk 0:01:55]} 21. Bxf3
{[%clk 0:02:11.1]} 21... Nxf3 {[%clk 0:01:52.6]} 22. Re2 {[%clk 0:02:11.4]}
22... Rxe2 {[%clk 0:01:39.7]} 23. Qxe2 {[%clk 0:02:12.3]} 23... Nd4 {[%clk
0:01:39.1]} 24. Qe7 {[%clk 0:02:10.2]} 24... Qxe7 {[%clk 0:01:39.2]} 25. Nxe7+
{[%clk 0:02:10.3]} 25... Kf8 {[%clk 0:01:39.8]} 26. Nc8 {[%clk 0:02:10.8]} 26...
Nxb3 {[%clk 0:01:37.3]} 27. Nxd6 {[%clk 0:02:10.8]} 27... Nc5 {[%clk 0:01:23.3]}
28. Rb1 {[%clk 0:02:10]} 28... Bd4 {[%clk 0:01:14.1]} 29. Kg2 {[%clk 0:02:01.5]}
29... b6 {[%clk 0:01:01.6]} 30. Rxb6 {[%clk 0:01:57.8]} 30... Nd3 {[%clk
0:01:01.5]} 31. Rb7 {[%clk 0:01:55.4]} 31... f5 {[%clk 0:00:55]} 32. f4 {[%clk
0:01:52.7]} 32... Ne1+ {[%clk 0:00:50.4]} 33. Kf1 {[%clk 0:01:52.1]} 33... Nc2
{[%clk 0:00:46.2]} 34. Rxh7 {[%clk 0:01:49.4]} 34... Bc5 {[%clk 0:00:46.3]} 35.
Nb7 {[%clk 0:01:47.7]} 35... Be7 {[%clk 0:00:43.7]} 36. Na5 {[%clk 0:01:45.6]}
36... Nd4 {[%clk 0:00:40.7]} 37. Rh8+ {[%clk 0:01:38.6]} 37... Kf7 {[%clk
0:00:39]} 38. Rc8 {[%clk 0:01:39]} 38... c5 {[%clk 0:00:30.7]} 39. Nc6 {[%clk
0:01:38.1]} 39... Bd6 {[%clk 0:00:29.9]} 40. Nxd4 {[%clk 0:01:36.9]} 40... cxd4
{[%clk 0:00:29.6]} 41. Ke2 {[%clk 0:01:37.5]} 41... g5 {[%clk 0:00:28.8]} 42.
fxg5 {[%clk 0:01:35.5]} 42... Bxg3 {[%clk 0:00:28.7]} 43. Kd3 {[%clk 0:01:35.5]}
43... f4 {[%clk 0:00:28.9]} 44. Kxd4 {[%clk 0:01:34.3]} 44... f3 {[%clk
0:00:29.5]} 45. Ke3 {[%clk 0:01:34.7]} 45... f2 {[%clk 0:00:30.3]} 46. Ke2
{[%clk 0:01:35.3]} 46... Kg6 {[%clk 0:00:30.7]} 47. c5 {[%clk 0:01:33.9]} 47...
Kxg5 {[%clk 0:00:29.3]} 48. Rg8+ {[%clk 0:01:33.1]} 48... Kf4 {[%clk 0:00:28.9]}
1-0

[Event "*** SCC Grand Prix: Titled Tuesday Blitz"]
[Site "Chess.com"]
[Date "2020.10.13"]
[Round "9"]
[White "grunbergmihai"]
[Black "GianmarcoVaR"]
[Result "1/2-1/2"]
[WhiteElo "2444"]
[BlackElo "2596"]
[TimeControl "180+1"]
[EndTime "11:43:34 PDT"]
[Termination "Game drawn by repetition"]

1. Nf3 {[%clk 0:03:00.9]} 1... Nf6 {[%clk 0:02:49.7]} 2. c4 {[%clk 0:03:00.8]}
2... b6 {[%clk 0:02:48.1]} 3. g3 {[%clk 0:03:01.7]} 3... Bb7 {[%clk 0:02:48.5]}
4. Bg2 {[%clk 0:03:02.1]} 4... c5 {[%clk 0:02:48.1]} 5. O-O {[%clk 0:03:02.1]}
5... g6 {[%clk 0:02:48.6]} 6. Nc3 {[%clk 0:03:02.6]} 6... Bg7 {[%clk 0:02:49.1]}
7. b3 {[%clk 0:03:02.2]} 7... Ne4 {[%clk 0:02:46.3]} 8. Bb2 {[%clk 0:02:58.9]}
8... Nxc3 {[%clk 0:02:46.5]} 9. Bxc3 {[%clk 0:02:58.9]} 9... Bxc3 {[%clk
0:02:46.2]} 10. dxc3 {[%clk 0:02:58.9]} 10... O-O {[%clk 0:02:46.7]} 11. Qd2
{[%clk 0:02:58.6]} 11... Kg7 {[%clk 0:02:46.9]} 12. h4 {[%clk 0:02:57.3]} 12...
d6 {[%clk 0:02:44.9]} 13. h5 {[%clk 0:02:57]} 13... Nd7 {[%clk 0:02:44.5]} 14.
h6+ {[%clk 0:02:56.5]} 14... Kg8 {[%clk 0:02:44.8]} 15. Rad1 {[%clk 0:02:52.4]}
15... Nf6 {[%clk 0:02:45.2]} 16. Ng5 {[%clk 0:02:49]} 16... Bxg2 {[%clk
0:02:43.9]} 17. Kxg2 {[%clk 0:02:49.9]} 17... Qc8 {[%clk 0:02:43]} 18. f3 {[%clk
0:02:46.7]} 18... a6 {[%clk 0:02:35.5]} 19. e4 {[%clk 0:02:45.9]} 19... b5
{[%clk 0:02:34.5]} 20. cxb5 {[%clk 0:02:41.3]} 20... axb5 {[%clk 0:02:35.4]} 21.
Rf2 {[%clk 0:02:41.6]} 21... Ra3 {[%clk 0:02:24.5]} 22. Qe3 {[%clk 0:02:36.9]}
22... c4 {[%clk 0:01:48.7]} 23. e5 {[%clk 0:02:23.9]} 23... dxe5 {[%clk
0:01:42.1]} 24. Qxe5 {[%clk 0:02:23.5]} 24... Qf5 {[%clk 0:01:35]} 25. Qxf5
{[%clk 0:02:16.6]} 25... gxf5 {[%clk 0:01:35.9]} 26. Rb1 {[%clk 0:01:53.5]}
26... Nd5 {[%clk 0:01:29.2]} 27. bxc4 {[%clk 0:01:51.2]} 27... bxc4 {[%clk
0:01:29.5]} 28. Rb7 {[%clk 0:01:43.5]} 28... Rxc3 {[%clk 0:01:20.4]} 29. Re2
{[%clk 0:01:29]} 29... Ra3 {[%clk 0:00:58.6]} 30. Re5 {[%clk 0:01:24.6]} 30...
Rxa2+ {[%clk 0:00:55]} 31. Kh3 {[%clk 0:01:24.4]} 31... e6 {[%clk 0:00:49.8]}
32. Rxe6 {[%clk 0:01:22.2]} 32... fxe6 {[%clk 0:00:42]} 33. Rg7+ {[%clk
0:01:21.3]} 33... Kh8 {[%clk 0:00:11.3]} 34. Rxh7+ {[%clk 0:01:20.6]} 34... Kg8
{[%clk 0:00:11.4]} 35. Rg7+ {[%clk 0:01:20.4]} 35... Kh8 {[%clk 0:00:12.3]} 36.
Rh7+ {[%clk 0:01:19.9]} 36... Kg8 {[%clk 0:00:12.7]} 37. Rg7+ {[%clk 0:01:18.5]}
37... Kh8 {[%clk 0:00:08.5]} 38. Rh7+ {[%clk 0:01:11.7]} 1/2-1/2

[Event "*** SCC Grand Prix: Titled Tuesday Blitz"]
[Site "Chess.com"]
[Date "2020.10.13"]
[Round "9"]
[White "Ariadna_Atreides"]
[Black "KarstenHansch"]
[Result "0-1"]
[WhiteElo "2049"]
[BlackElo "2444"]
[TimeControl "180+1"]
[EndTime "11:43:42 PDT"]
[Termination "KarstenHansch won on time"]

1. d4 {[%clk 0:03:00.9]} 1... Nf6 {[%clk 0:02:57.9]} 2. Nf3 {[%clk 0:02:59.4]}
2... g6 {[%clk 0:02:58.8]} 3. c4 {[%clk 0:02:58.6]} 3... Bg7 {[%clk 0:02:59.5]}
4. Nc3 {[%clk 0:02:59.1]} 4... O-O {[%clk 0:03:00.4]} 5. e4 {[%clk 0:02:59]}
5... d6 {[%clk 0:03:00.6]} 6. Be2 {[%clk 0:02:59.4]} 6... e5 {[%clk 0:03:01.1]}
7. d5 {[%clk 0:02:59.3]} 7... a5 {[%clk 0:02:58.8]} 8. Bg5 {[%clk 0:02:58.6]}
8... h6 {[%clk 0:02:56.8]} 9. Bh4 {[%clk 0:02:59]} 9... Qe8 {[%clk 0:02:55.2]}
10. Nd2 {[%clk 0:02:58.6]} 10... Nfd7 {[%clk 0:02:51.8]} 11. O-O {[%clk
0:02:54.3]} 11... f5 {[%clk 0:02:52]} 12. exf5 {[%clk 0:02:50.3]} 12... gxf5
{[%clk 0:02:51.3]} 13. Bh5 {[%clk 0:02:49.3]} 13... Rf7 {[%clk 0:02:50.5]} 14.
a3 {[%clk 0:02:38.6]} 14... Nf6 {[%clk 0:02:43.7]} 15. Bxf7+ {[%clk 0:02:36.6]}
15... Qxf7 {[%clk 0:02:43]} 16. f3 {[%clk 0:02:29.3]} 16... Nbd7 {[%clk
0:02:38]} 17. Qc2 {[%clk 0:02:27.4]} 17... Qh5 {[%clk 0:02:36.5]} 18. Bg3 {[%clk
0:02:18.8]} 18... Nf8 {[%clk 0:02:36.2]} 19. b4 {[%clk 0:02:14.2]} 19... Ng6
{[%clk 0:02:29.7]} 20. c5 {[%clk 0:02:10.3]} 20... Qg5 {[%clk 0:02:29.7]} 21.
cxd6 {[%clk 0:02:06.7]} 21... cxd6 {[%clk 0:02:30.6]} 22. Nb5 {[%clk 0:02:05.6]}
22... Nh5 {[%clk 0:02:21.6]} 23. Nxd6 {[%clk 0:01:57.6]} 23... Nxg3 {[%clk
0:02:20.6]} 24. hxg3 {[%clk 0:01:49.6]} 24... Bd7 {[%clk 0:02:17.6]} 25. Rfe1
{[%clk 0:01:20.3]} 25... e4 {[%clk 0:02:00.9]} 26. Rac1 {[%clk 0:01:15]} 26...
Qxg3 {[%clk 0:01:59.6]} 27. N6xe4 {[%clk 0:00:22]} 27... fxe4 {[%clk 0:01:49.1]}
28. Nxe4 {[%clk 0:00:21.3]} 28... Qh4 {[%clk 0:01:48.2]} 29. Red1 {[%clk
0:00:15.4]} 29... Be5 {[%clk 0:01:45.2]} 30. g3 {[%clk 0:00:07.6]} 30... Bxg3
{[%clk 0:01:42.6]} 31. Nxg3 {[%clk 0:00:07.4]} 31... Qxg3+ {[%clk 0:01:42.3]}
32. Qg2 {[%clk 0:00:07]} 32... Qxg2+ {[%clk 0:01:41.4]} 33. Kxg2 {[%clk
0:00:07.9]} 33... axb4 {[%clk 0:01:39]} 34. axb4 {[%clk 0:00:07]} 34... Rc8
{[%clk 0:01:34]} 35. Rxc8+ {[%clk 0:00:05.4]} 35... Bxc8 {[%clk 0:01:34.9]} 36.
d6 {[%clk 0:00:05.8]} 36... Bd7 {[%clk 0:01:33.8]} 37. Ra1 {[%clk 0:00:03.9]}
37... Kf7 {[%clk 0:01:33.4]} 38. Ra7 {[%clk 0:00:02.6]} 38... Bc6 {[%clk
0:01:33.3]} 39. d7 {[%clk 0:00:02.7]} 39... Ke7 {[%clk 0:01:31.8]} 40. Rxb7
{[%clk 0:00:03.1]} 40... Bxb7 {[%clk 0:01:31.3]} 41. Kg3 {[%clk 0:00:02]} 41...
Kxd7 {[%clk 0:01:29.5]} 42. Kg4 {[%clk 0:00:02.1]} 42... Ne5+ {[%clk 0:01:28.1]}
43. Kh5 {[%clk 0:00:01.8]} 43... Nf7 {[%clk 0:01:26.9]} 44. Kg6 {[%clk
0:00:02.1]} 44... Bxf3 {[%clk 0:01:26.4]} 0-1

[Event "*** SCC Grand Prix: Titled Tuesday Blitz"]
[Site "Chess.com"]
[Date "2020.10.13"]
[Round "9"]
[White "elcandado"]
[Black "chessfrendz"]
[Result "1-0"]
[WhiteElo "2557"]
[BlackElo "2384"]
[TimeControl "180+1"]
[EndTime "11:43:44 PDT"]
[Termination "elcandado won by resignation"]

1. d4 {[%clk 0:03:00.9]} 1... d5 {[%clk 0:02:57.8]} 2. Bf4 {[%clk 0:03:01.1]}
2... Nf6 {[%clk 0:02:57.1]} 3. e3 {[%clk 0:03:01.4]} 3... e6 {[%clk 0:02:52.5]}
4. Nd2 {[%clk 0:03:00.5]} 4... Bd6 {[%clk 0:02:52.5]} 5. Bg3 {[%clk 0:03:01]}
5... O-O {[%clk 0:02:51.3]} 6. Bd3 {[%clk 0:03:01.5]} 6... c5 {[%clk 0:02:50.9]}
7. c3 {[%clk 0:03:01.2]} 7... Nc6 {[%clk 0:02:49.2]} 8. Ngf3 {[%clk 0:03:00.2]}
8... Bxg3 {[%clk 0:02:42.5]} 9. hxg3 {[%clk 0:02:59.6]} 9... Qc7 {[%clk
0:02:41.4]} 10. Ne5 {[%clk 0:02:54.4]} 10... Nxe5 {[%clk 0:02:39.5]} 11. Bxh7+
{[%clk 0:02:53.2]} 11... Nxh7 {[%clk 0:02:35]} 12. Qh5 {[%clk 0:02:53.2]} 12...
Nd3+ {[%clk 0:02:25.2]} 13. Ke2 {[%clk 0:02:53]} 13... f6 {[%clk 0:02:19.9]} 14.
Qxh7+ {[%clk 0:02:51.5]} 14... Kf7 {[%clk 0:02:19.4]} 15. Qxd3 {[%clk
0:02:50.4]} 15... Bd7 {[%clk 0:02:13.9]} 16. f3 {[%clk 0:02:24.7]} 16... Rh8
{[%clk 0:02:07.4]} 17. Kf2 {[%clk 0:02:24.2]} 17... a6 {[%clk 0:01:56.2]} 18.
Rh7 {[%clk 0:02:20.9]} 18... Rxh7 {[%clk 0:01:51.6]} 19. Qxh7 {[%clk 0:02:21.8]}
19... cxd4 {[%clk 0:01:50.6]} 20. exd4 {[%clk 0:02:20.6]} 20... Qb6 {[%clk
0:01:44.2]} 21. Qc2 {[%clk 0:02:12.4]} 21... Rh8 {[%clk 0:01:39.8]} 22. Qb3
{[%clk 0:02:11.2]} 22... Qc7 {[%clk 0:01:38.8]} 23. Qb4 {[%clk 0:02:10.3]} 23...
a5 {[%clk 0:01:37.2]} 24. Qa3 {[%clk 0:02:08.6]} 24... b6 {[%clk 0:01:36.3]} 25.
Re1 {[%clk 0:02:04.4]} 25... Bb5 {[%clk 0:01:34.7]} 26. Qb3 {[%clk 0:01:45.8]}
26... Bd3 {[%clk 0:01:32]} 27. Qd1 {[%clk 0:01:44.7]} 27... Rh2 {[%clk
0:01:25.5]} 28. Rh1 {[%clk 0:01:42.8]} 28... Rxh1 {[%clk 0:01:22.7]} 29. Qxh1
{[%clk 0:01:43.7]} 29... Qd7 {[%clk 0:01:18.3]} 30. Qd1 {[%clk 0:01:30.4]} 30...
Qb5 {[%clk 0:01:12.3]} 31. b3 {[%clk 0:01:30.3]} 31... Bg6 {[%clk 0:01:07.1]}
32. Qe2 {[%clk 0:01:28.3]} 32... Qc6 {[%clk 0:01:06.1]} 33. c4 {[%clk
0:01:24.4]} 33... a4 {[%clk 0:01:04.6]} 34. Qe3 {[%clk 0:01:22.1]} 34... a3
{[%clk 0:01:02.8]} 35. Qc3 {[%clk 0:01:19]} 35... dxc4 {[%clk 0:00:51.9]} 36.
Nxc4 {[%clk 0:01:14.2]} 36... b5 {[%clk 0:00:49.3]} 37. Ne5+ {[%clk 0:01:13.6]}
37... fxe5 {[%clk 0:00:48.3]} 38. Qxc6 {[%clk 0:01:13.1]} 38... exd4 {[%clk
0:00:47.9]} 39. Qxb5 {[%clk 0:01:07.4]} 39... Bb1 {[%clk 0:00:44.5]} 40. Qa5
{[%clk 0:01:04.7]} 40... Bxa2 {[%clk 0:00:43.7]} 41. Qxa3 {[%clk 0:01:05]} 41...
Bb1 {[%clk 0:00:43.6]} 42. Qd6 {[%clk 0:01:03.9]} 42... e5 {[%clk 0:00:42]} 43.
Qxe5 {[%clk 0:01:02.3]} 43... Bc2 {[%clk 0:00:40.9]} 44. Qxd4 {[%clk 0:01:03.2]}
44... Bxb3 {[%clk 0:00:40.8]} 45. Qd7+ {[%clk 0:00:59.2]} 45... Kf6 {[%clk
0:00:40.3]} 46. f4 {[%clk 0:00:58.9]} 46... Be6 {[%clk 0:00:39.2]} 47. Qd6
{[%clk 0:00:58.3]} 1-0

[Event "*** SCC Grand Prix: Titled Tuesday Blitz"]
[Site "Chess.com"]
[Date "2020.10.13"]
[Round "9"]
[White "davigator"]
[Black "Roza_Idrisova"]
[Result "1-0"]
[WhiteElo "2336"]
[BlackElo "2175"]
[TimeControl "180+1"]
[EndTime "11:43:46 PDT"]
[Termination "davigator won by resignation"]

1. e4 {[%clk 0:03:00.9]} 1... c6 {[%clk 0:02:59.5]} 2. d4 {[%clk 0:02:59.8]}
2... d5 {[%clk 0:02:59.8]} 3. e5 {[%clk 0:03:00.2]} 3... c5 {[%clk 0:02:59.1]}
4. Nf3 {[%clk 0:02:59.8]} 4... Nc6 {[%clk 0:02:58.7]} 5. Bb5 {[%clk 0:02:58.5]}
5... cxd4 {[%clk 0:02:58.2]} 6. Qxd4 {[%clk 0:02:52.8]} 6... e6 {[%clk
0:02:57.3]} 7. c4 {[%clk 0:02:50.6]} 7... Ne7 {[%clk 0:02:55.2]} 8. Nc3 {[%clk
0:02:48]} 8... a6 {[%clk 0:02:54.2]} 9. Bxc6+ {[%clk 0:02:47]} 9... bxc6 {[%clk
0:02:51.6]} 10. O-O {[%clk 0:02:44]} 10... Nf5 {[%clk 0:02:51]} 11. Qf4 {[%clk
0:02:43.3]} 11... Be7 {[%clk 0:02:39.2]} 12. Rd1 {[%clk 0:02:40.4]} 12... O-O
{[%clk 0:02:32.2]} 13. g4 {[%clk 0:02:29.3]} 13... Nh6 {[%clk 0:02:25.4]} 14.
Ne4 {[%clk 0:02:14.3]} 14... f5 {[%clk 0:02:14.2]} 15. exf6 {[%clk 0:02:10.2]}
15... Bxf6 {[%clk 0:02:12.1]} 16. Nxf6+ {[%clk 0:02:06.8]} 16... Qxf6 {[%clk
0:02:08]} 17. Qxf6 {[%clk 0:02:06.7]} 17... Rxf6 {[%clk 0:02:07.7]} 18. Ne5
{[%clk 0:02:06.4]} 18... Nf7 {[%clk 0:01:47.4]} 19. Nxc6 {[%clk 0:02:04.9]}
19... dxc4 {[%clk 0:01:21.7]} 20. g5 {[%clk 0:01:56.6]} 20... Rf3 {[%clk
0:01:18.5]} 21. Be3 {[%clk 0:01:48.6]} 21... Bb7 {[%clk 0:01:10.5]} 22. Na5
{[%clk 0:01:46.2]} 22... Bd5 {[%clk 0:01:09.3]} 23. Rac1 {[%clk 0:01:46]} 23...
Rc8 {[%clk 0:01:05.8]} 24. b3 {[%clk 0:01:45.9]} 24... c3 {[%clk 0:01:03.2]} 25.
Nc4 {[%clk 0:01:45.2]} 25... Rf5 {[%clk 0:00:58.5]} 26. h4 {[%clk 0:01:43]}
26... h5 {[%clk 0:00:49.1]} 27. Rxc3 {[%clk 0:01:36.2]} 27... Bxc4 {[%clk
0:00:48.6]} 28. bxc4 {[%clk 0:01:33.6]} 28... Ne5 {[%clk 0:00:44.2]} 29. c5
{[%clk 0:01:32.9]} 29... Nf3+ {[%clk 0:00:42.2]} 30. Kf1 {[%clk 0:01:32.5]}
30... Nxh4 {[%clk 0:00:39]} 31. Rd6 {[%clk 0:01:31.9]} 31... Nf3 {[%clk
0:00:33.1]} 32. c6 {[%clk 0:01:18]} 32... Rd5 {[%clk 0:00:23.7]} 33. Bf4 {[%clk
0:00:57.9]} 33... e5 {[%clk 0:00:19.7]} 34. Rxd5 {[%clk 0:00:56.1]} 34... exf4
{[%clk 0:00:18.1]} 35. c7 {[%clk 0:00:55.9]} 35... Kh7 {[%clk 0:00:11.6]} 36.
Rd8 {[%clk 0:00:55.3]} 1-0

[Event "*** SCC Grand Prix: Titled Tuesday Blitz"]
[Site "Chess.com"]
[Date "2020.10.13"]
[Round "9"]
[White "Kaslask"]
[Black "Piotrek1979"]
[Result "1-0"]
[WhiteElo "2279"]
[BlackElo "2397"]
[TimeControl "180+1"]
[EndTime "11:43:49 PDT"]
[Termination "Kaslask won by resignation"]

1. d4 {[%clk 0:03:00.9]} 1... Nc6 {[%clk 0:02:57.4]} 2. Nf3 {[%clk 0:02:54.9]}
2... d6 {[%clk 0:02:53.7]} 3. g3 {[%clk 0:02:51.8]} 3... Nf6 {[%clk 0:02:52.9]}
4. Bg2 {[%clk 0:02:51.7]} 4... Bf5 {[%clk 0:02:41.5]} 5. d5 {[%clk 0:02:50.3]}
5... Nb8 {[%clk 0:02:34.8]} 6. c4 {[%clk 0:02:46.1]} 6... a5 {[%clk 0:02:24.3]}
7. Nc3 {[%clk 0:02:44.9]} 7... Na6 {[%clk 0:02:23.6]} 8. O-O {[%clk 0:02:43.7]}
8... g6 {[%clk 0:02:21.5]} 9. Nd4 {[%clk 0:02:39.6]} 9... Bd7 {[%clk 0:02:20.4]}
10. e4 {[%clk 0:02:39.3]} 10... Bg7 {[%clk 0:02:19.5]} 11. f4 {[%clk 0:02:39]}
11... O-O {[%clk 0:02:05.1]} 12. h3 {[%clk 0:02:33.2]} 12... Nc5 {[%clk
0:01:46.2]} 13. Kh2 {[%clk 0:02:31.9]} 13... e5 {[%clk 0:01:04.8]} 14. fxe5
{[%clk 0:02:29.1]} 14... dxe5 {[%clk 0:01:05.7]} 15. Nb3 {[%clk 0:02:24]} 15...
Nxb3 {[%clk 0:00:49.9]} 16. Qxb3 {[%clk 0:02:17]} 16... b6 {[%clk 0:00:49.3]}
17. Bg5 {[%clk 0:02:13.9]} 17... h6 {[%clk 0:00:48.6]} 18. Be3 {[%clk
0:02:13.2]} 18... Ne8 {[%clk 0:00:47.8]} 19. Nb5 {[%clk 0:02:07.7]} 19... a4
{[%clk 0:00:33.9]} 20. Qc2 {[%clk 0:02:06.3]} 20... Nd6 {[%clk 0:00:30.5]} 21.
Nxd6 {[%clk 0:02:03.7]} 21... cxd6 {[%clk 0:00:31.4]} 22. Qd2 {[%clk 0:02:03.1]}
22... h5 {[%clk 0:00:28.3]} 23. Qb4 {[%clk 0:01:57.6]} 23... f5 {[%clk
0:00:11.2]} 24. Qxd6 {[%clk 0:01:56.5]} 24... f4 {[%clk 0:00:11]} 25. Bf2 {[%clk
0:01:56.1]} 25... Rf6 {[%clk 0:00:09]} 26. Qxe5 {[%clk 0:01:54.1]} 26... fxg3+
{[%clk 0:00:09.1]} 27. Qxg3 {[%clk 0:01:52.8]} 27... Rxf2 {[%clk 0:00:08.9]} 28.
Rxf2 {[%clk 0:01:48.3]} 28... Qe8 {[%clk 0:00:09.1]} 29. Kh1 {[%clk 0:01:46.1]}
29... Be5 {[%clk 0:00:09.2]} 30. Qg5 {[%clk 0:01:44.2]} 30... a3 {[%clk
0:00:10]} 31. Rg1 {[%clk 0:01:39.7]} 31... axb2 {[%clk 0:00:10.9]} 32. Bf3
{[%clk 0:01:39.3]} 32... Ra3 {[%clk 0:00:10.7]} 33. Qxh5 {[%clk 0:01:35.1]}
33... Kg7 {[%clk 0:00:07.1]} 34. Rfg2 {[%clk 0:01:15.9]} 34... b1=Q {[%clk
0:00:06.5]} 35. Rxg6+ {[%clk 0:01:13.5]} 35... Kf8 {[%clk 0:00:06.1]} 36. Rg8+
{[%clk 0:01:10.7]} 36... Ke7 {[%clk 0:00:06.6]} 37. Qxe5+ {[%clk 0:01:07.3]}
37... Kd8 {[%clk 0:00:06.7]} 38. Rxe8+ {[%clk 0:01:07.1]} 38... Bxe8 {[%clk
0:00:07.4]} 39. Qd6+ {[%clk 0:01:05.8]} 39... Bd7 {[%clk 0:00:03.9]} 40. Rxb1
{[%clk 0:01:03]} 40... Rxf3 {[%clk 0:00:04.8]} 41. Rxb6 {[%clk 0:01:01.5]} 1-0